bitfinex-derivatives/quotes_BTCF0:USTF0_20250417
["timestamp","ask_amount","ask_price","bid_price","bid_amount"]
[1744876380360,0.1301565,84645.0,84644.0,0.0914737]
[1744876380574,0.012,84645.0,84644.0,0.1654737]
[1744876380975,0.1301499,84645.0,84644.0,0.1654737]
[1744876382370,0.012,84645.0,84644.0,0.1654737]
[1744876386263,0.012,84645.0,84644.0,0.21137457]
[1744876386472,0.00017721,84652.0,84651.0,0.1181415]
[1744876386670,0.059068,84655.0,84654.0,0.1772025]
[1744876388175,0.059068,84655.0,84654.0,0.2073025]
[1744876388482,0.060068,84655.0,84654.0,0.2073025]
[1744876388673,0.091568,84655.0,84654.0,0.2073025]
[1744876389472,0.091568,84655.0,84654.0,0.2083025]
[1744876390481,0.091568,84655.0,84654.0,0.060068]
[1744876391078,0.091568,84655.0,84654.0,0.060148]
[1744876391280,0.091568,84655.0,84654.0,0.10604887]
[1744876391483,0.0948237,84655.0,84654.0,0.10604887]
[1744876392292,0.0948237,84655.0,84654.0,0.18000887]
[1744876393886,0.0948237,84655.0,84654.0,0.21060887]
[1744876394086,0.0042557,84655.0,84654.0,0.21060887]
[1744876394282,0.1223916,84655.0,84654.0,0.21060887]
[1744876394587,0.1224716,84655.0,84654.0,0.21060887]
[1744876395588,0.1224716,84655.0,84654.0,0.24250887]
[1744876395787,0.1191359,84655.0,84654.0,0.196528]
[1744876396189,0.1223916,84655.0,84654.0,0.24242887]
[1744876396390,0.1181308,84659.0,84657.0,0.0590659]
[1744876396595,0.1181308,84659.0,84658.0,0.1825303]
[1744876397583,0.1191308,84659.0,84658.0,0.1825303]
[1744876398082,0.1191308,84659.0,84658.0,0.1835303]
[1744876399391,0.001,84659.0,84658.0,0.1845303]
[1744876399584,0.1191303,84659.0,84658.0,0.1845303]
[1744876399885,0.1493303,84659.0,84658.0,0.1845303]
[1744876400889,0.1771909,84666.0,84665.0,0.1771785]
[1744876401192,0.1771909,84666.0,84665.0,0.2511385]
[1744876401391,0.1771909,84666.0,84665.0,0.29703937]
[1744876401785,0.2362546,84666.0,84665.0,0.29703937]
[1744876402186,0.3022546,84666.0,84665.0,0.29703937]
[1744876402386,0.3337546,84666.0,84665.0,0.29803937]
[1744876402894,0.3337546,84666.0,84665.0,0.29903937]
[1744876405097,0.3337546,84666.0,84665.0,0.31229204]
[1744876406299,0.3337546,84666.0,84665.0,0.2531385]
[1744876406695,0.3337546,84666.0,84665.0,0.29903937]
[1744876407397,0.3337546,84666.0,84665.0,0.31236086]
[1744876410699,0.3337546,84666.0,84665.0,0.26645999]
[1744876411198,0.3337546,84666.0,84665.0,0.31236086]
[1744876412900,0.215626,84666.0,84665.0,0.31236086]
[1744876414103,0.1565623,84666.0,84665.0,0.31236086]
[1744876414503,0.1566423,84666.0,84665.0,0.31236086]
[1744876415803,0.1565623,84666.0,84665.0,0.26645999]
[1744876416194,0.1565623,84666.0,84665.0,0.2531385]
[1744876416396,0.1565623,84666.0,84665.0,0.29903937]
[1744876417999,0.1565623,84666.0,84665.0,0.31279448]
[1744876419207,0.1250623,84666.0,84665.0,0.31279448]
[1744876419408,0.1251423,84666.0,84665.0,0.31279448]
[1744876419607,0.06608,84666.0,84665.0,0.31279448]
[1744876420310,0.1842006,84666.0,84665.0,0.31279448]
[1744876420712,0.1841206,84666.0,84665.0,0.26689361]
[1744876421110,0.1841206,84666.0,84665.0,0.31279448]
[1744876425810,0.1841206,84666.0,84665.0,0.26689361]
[1744876427312,0.1841206,84666.0,84665.0,0.31279448]
[1744876430713,0.1841206,84666.0,84665.0,0.26689361]
[1744876431114,0.1841206,84666.0,84665.0,0.31279448]
[1744876433219,0.1841206,84666.0,84665.0,0.34479448]
[1744876434809,0.1941206,84666.0,84665.0,0.34479448]
[1744876435818,0.1941206,84666.0,84665.0,0.29889361]
[1744876436218,0.1941206,84666.0,84665.0,0.34479448]
[1744876440724,0.1941206,84666.0,84665.0,0.29889361]
[1744876441221,0.1941206,84666.0,84665.0,0.34479448]
[1744876445429,0.1941206,84666.0,84665.0,0.25373798]
[1744876445625,0.1941206,84666.0,84665.0,0.25381798]
[1744876445827,0.1941206,84666.0,84665.0,0.20783711]
[1744876448527,0.1941206,84666.0,84665.0,0.25373798]
[1744876450739,0.1941206,84666.0,84665.0,0.20783711]
[1744876451038,0.1941206,84666.0,84665.0,0.194082]
[1744876451231,0.1941206,84666.0,84665.0,0.23998287]
[1744876453735,0.5549206,84666.0,84665.0,0.23998287]
[1744876456534,0.5549206,84666.0,84665.0,0.194082]
[1744876456738,0.5549206,84666.0,84665.0,0.23998287]
[1744876458041,0.5549206,84666.0,84665.0,0.24006287]
[1744876458239,0.5649206,84666.0,84665.0,0.26006287]
[1744876460752,0.5649206,84666.0,84665.0,0.214082]
[1744876461247,0.5649206,84666.0,84665.0,0.09596]
[1744876461440,0.5649206,84666.0,84665.0,0.26006287]
[1744876462448,0.5650006,84666.0,84665.0,0.26006287]
[1744876462840,0.08608,84666.0,84665.0,0.26006287]
[1744876463142,0.1181193,84667.0,84666.0,0.1181206]
[1744876463342,0.1497193,84667.0,84666.0,0.2017206]
[1744876463750,0.1497993,84667.0,84666.0,0.2017206]
[1744876465743,0.1497993,84667.0,84666.0,0.2027206]
[1744876466043,0.1497193,84667.0,84666.0,0.2027206]
[1744876466243,0.1497193,84667.0,84666.0,0.2037206]
[1744876466443,0.1497193,84667.0,84666.0,0.24962147]
[1744876470154,0.1497193,84667.0,84666.0,0.21712147]
[1744876470752,0.1497193,84667.0,84666.0,0.1712206]
[1744876471351,0.1497193,84667.0,84666.0,0.21712147]
[1744876475857,0.1497193,84667.0,84666.0,0.1712206]
[1744876476159,0.1497193,84667.0,84666.0,0.21712147]
[1744876480758,0.1497193,84667.0,84666.0,0.2028206]
[1744876481160,0.1497193,84667.0,84666.0,0.24872147]
[1744876481753,0.0316,84667.0,84666.0,0.24872147]
[1744876482153,0.005,84670.0,84669.0,0.1181164]
[1744876482361,0.005,84670.0,84669.0,0.1381164]
[1744876482564,0.155015,84670.0,84669.0,0.1381164]
[1744876483063,0.155015,84670.0,84669.0,0.2332164]
[1744876483268,0.156015,84670.0,84669.0,0.2332164]
[1744876484567,0.0379,84670.0,84669.0,0.2332164]
[1744876484967,0.0379,84670.0,84669.0,0.2342164]
[1744876485267,0.0369,84670.0,84669.0,0.2342164]
[1744876485468,0.0379,84670.0,84669.0,0.2362164]
[1744876485657,0.0379,84670.0,84669.0,0.2352164]
[1744876485856,0.03798,84670.0,84669.0,0.2362164]
[1744876486159,0.0379,84670.0,84669.0,0.2362164]
[1744876486358,0.006,84670.0,84669.0,0.28211727]
[1744876486958,0.005,84670.0,84669.0,0.28011727]
[1744876487160,0.006,84670.0,84669.0,0.28311727]
[1744876487463,0.0638,84673.0,84672.0,0.1181122]
[1744876487659,0.0308,84673.0,84672.0,0.1381122]
[1744876488268,0.0308,84673.0,84672.0,0.2013122]
[1744876488764,0.0638,84673.0,84672.0,0.2023122]
[1744876489370,0.0648,84673.0,84672.0,0.2053122]
[1744876490363,0.01307698,84702.0,84672.0,0.2053122]
[1744876490364,0.0590465,84686.0,84676.0,0.0590528]
[1744876490568,0.118095,84685.0,84682.0,0.1180982]
[1744876490764,0.118095,84685.0,84682.0,0.1380982]
[1744876490965,0.03264581,84683.0,84682.0,0.1380982]
[1744876491364,0.00017721,84691.0,84690.0,0.1180871]
[1744876491568,0.11841002,84691.0,84690.0,0.1380871]
[1744876492070,0.18331002,84691.0,84690.0,0.1380871]
[1744876492264,0.06522302,84691.0,84690.0,0.1380871]
[1744876492462,0.06522302,84691.0,84690.0,0.1713871]
[1744876492463,0.06507721,84691.0,84690.0,0.1713871]
[1744876492659,0.06715721,84691.0,84690.0,0.1713871]
[1744876492862,0.06707721,84691.0,84690.0,0.1713871]
[1744876493171,0.06715721,84691.0,84690.0,0.1713871]
[1744876493464,0.07015721,84691.0,84690.0,0.1723871]
[1744876493874,0.07007721,84691.0,84690.0,0.1723871]
[1744876494271,0.07015721,84691.0,84690.0,0.1723871]
[1744876495566,0.07015721,84691.0,84690.0,0.18140018]
[1744876495767,0.07007721,84691.0,84690.0,0.18140018]
[1744876495968,0.07007721,84691.0,84690.0,0.19454545]
[1744876498169,0.07015721,84691.0,84690.0,0.19454545]
[1744876500776,0.07007721,84691.0,84690.0,0.19454545]
[1744876502478,0.07007721,84691.0,84690.0,0.16124545]
[1744876502479,0.18816291,84691.0,84690.0,0.16124545]
[1744876502678,0.18816291,84691.0,84690.0,0.04315835]
[1744876502977,0.18816291,84691.0,84690.0,0.16124545]
[1744876505678,0.18816291,84691.0,84690.0,0.03001308]
[1744876505875,0.18816291,84691.0,84690.0,0.22202018]
[1744876506075,0.18816291,84691.0,84690.0,0.2130071]
[1744876507975,0.18824291,84691.0,84690.0,0.2130071]
[1744876509277,0.07015721,84691.0,84690.0,0.2130071]
[1744876509483,0.18824291,84691.0,84690.0,0.2130071]
[1744876510681,0.18816291,84691.0,84690.0,0.2130071]
[1744876510884,0.07007721,84691.0,84690.0,0.2130071]
[1744876511076,0.18816291,84691.0,84690.0,0.2130071]
[1744876512281,0.07015721,84691.0,84690.0,0.2130071]
[1744876512580,0.07015721,84691.0,84690.0,0.2435071]
[1744876512785,0.18824291,84691.0,84690.0,0.2435071]
[1744876514589,0.18824291,84691.0,84690.0,0.2130071]
[1744876514788,0.07015721,84691.0,84690.0,0.2130071]
[1744876514989,0.18824291,84691.0,84690.0,0.2130071]
[1744876515791,0.18816291,84691.0,84690.0,0.2130071]
[1744876521087,0.07007721,84691.0,84690.0,0.2130071]
[1744876521484,0.07007721,84691.0,84690.0,0.2445071]
[1744876521993,0.07015721,84691.0,84690.0,0.2445071]
[1744876523290,0.18824291,84691.0,84690.0,0.09492]
[1744876523592,0.18824291,84691.0,84690.0,0.2129671]
[1744876526595,0.18824291,84691.0,84690.0,0.1390871]
[1744876526794,0.18824291,84691.0,84690.0,0.2129671]
[1744876562727,0.18816291,84691.0,84690.0,0.2129671]
[1744876564027,0.07007721,84691.0,84690.0,0.2439671]
[1744876564227,0.18816291,84691.0,84690.0,0.2439671]
[1744876566833,0.0945399,84696.0,84695.0,0.1180801]
[1744876566834,0.005,84696.0,84695.0,0.1180801]
[1744876567034,0.1230787,84696.0,84695.0,0.1380801]
[1744876567735,0.1231587,84696.0,84695.0,0.1380801]
[1744876568127,0.1231587,84696.0,84695.0,0.1693801]
[1744876569038,0.1851587,84696.0,84695.0,0.2442201]
[1744876590242,0.1851587,84696.0,84695.0,0.2139201]
[1744876592452,0.1851587,84696.0,84695.0,0.0958]
[1744876592653,0.1851587,84696.0,84695.0,0.1400801]
[1744876592840,0.1851587,84696.0,84695.0,0.2138801]
[1744876595456,0.1851587,84696.0,84695.0,0.1400801]
[1744876595660,0.1851587,84696.0,84695.0,0.2138801]
[1744876604367,0.1851587,84696.0,84695.0,0.0958]
[1744876604957,0.1851587,84696.0,84695.0,0.2138801]
[1744876605564,0.1851587,84696.0,84695.0,0.1400801]
[1744876605763,0.1851587,84696.0,84695.0,0.2138801]
[1744876607568,0.1850787,84696.0,84695.0,0.2138801]
[1744876609373,0.1180969,84683.0,84673.0,0.059055]
[1744876609556,0.1380969,84683.0,84682.0,0.21203541]
[1744876610658,0.1709969,84683.0,84682.0,0.21203541]
[1744876610964,0.1719969,84683.0,84682.0,0.21703541]
[1744876611354,0.1719969,84683.0,84682.0,0.2294773]
[1744876611864,0.1719969,84683.0,84682.0,0.2314773]
[1744876612166,0.1719969,84683.0,84682.0,0.1577173]
[1744876612465,0.1719969,84683.0,84682.0,0.2314773]
[1744876612860,0.1719969,84683.0,84682.0,0.24042107]
[1744876613170,0.1719969,84683.0,84682.0,0.16666107]
[1744876613354,0.1719969,84683.0,84682.0,0.24042107]
[1744876615373,0.1719969,84683.0,84682.0,0.10988098]
[1744876615577,0.1719969,84683.0,84682.0,0.22797918]
[1744876615777,0.1719969,84683.0,84682.0,0.25867918]
[1744876616470,0.1719969,84683.0,84682.0,0.22797918]
[1744876617474,0.1719969,84683.0,84682.0,0.24036373]
[1744876620279,0.1719969,84683.0,84682.0,0.23141996]
[1744876622180,0.1719969,84683.0,84682.0,0.21903541]
[1744876622576,0.1719969,84683.0,84682.0,0.02717721]
[1744876622785,0.1719969,84683.0,84682.0,0.24963541]
[1744876624875,0.1719969,84683.0,84682.0,0.13153721]
[1744876625076,0.1719969,84683.0,84682.0,0.02717721]
[1744876625871,0.1519969,84683.0,84682.0,0.02717721]
[1744876626274,0.1830969,84683.0,84682.0,0.02717721]
[1744876630287,0.5438969,84683.0,84682.0,0.02717721]
[1744876660502,0.9046969,84683.0,84682.0,0.02717721]
[1744876662706,0.9046969,84683.0,84682.0,0.02517721]
[1744876663403,0.9036969,84683.0,84682.0,0.02017721]
[1744876663601,0.9056969,84683.0,84682.0,0.02017721]
[1744876670712,0.1840969,84683.0,84682.0,0.02017721]
[1744876671012,0.9056969,84683.0,84682.0,0.02017721]
[1744876679114,1.06344996,84683.0,84660.0,0.00019683]
[1744876679323,0.118115,84670.0,84669.0,0.032]
[1744876679622,0.1181373,84654.0,84653.0,0.000108]
[1744876679823,0.4789373,84654.0,84653.0,0.000108]
[1744876680010,0.1181387,84653.0,84652.0,0.07372]
[1744876681621,0.1514387,84653.0,84652.0,0.07372]
[1744876682324,0.1514387,84653.0,84652.0,0.08072]
[1744876682624,0.1524387,84653.0,84652.0,0.08072]
[1744876682825,0.1524387,84653.0,84652.0,0.14522]
[1744876683516,0.1524387,84653.0,84652.0,0.17682]
[1744876684325,0.5132387,84653.0,84652.0,0.2949601]
[1744876684926,0.5132387,84653.0,84652.0,0.17682]
[1744876686325,0.4799387,84653.0,84652.0,0.2949601]
[1744876687321,0.4799387,84653.0,84652.0,0.2212401]
[1744876690028,0.4799387,84653.0,84652.0,0.2412401]
[1744876690226,0.3618,84653.0,84652.0,0.4912401]
[1744876690432,0.11830621,84661.0,84660.0,0.1181289]
[1744876690730,0.11830621,84661.0,84660.0,0.1381289]
[1744876691130,0.11830621,84661.0,84660.0,0.2332289]
[1744876691626,0.11830621,84661.0,84660.0,0.2352289]
[1744876691820,0.11930621,84661.0,84660.0,0.2392289]
[1744876699535,0.11930621,84661.0,84660.0,0.3129089]
[1744876702528,0.15070621,84661.0,84660.0,0.3129089]
[1744876703844,0.1495192,84667.0,84666.0,0.1181206]
[1744876704140,0.1495192,84667.0,84666.0,0.1381206]
[1744876704738,0.1495192,84667.0,84666.0,0.2033206]
[1744876705039,0.1495192,84667.0,84666.0,0.2043206]
[1744876705344,0.1495192,84667.0,84666.0,0.2063206]
[1744876705539,0.1505192,84667.0,84666.0,0.2063206]
[1744876707539,0.1826192,84667.0,84666.0,0.2063206]
[1744876709347,0.1826192,84667.0,84666.0,0.1733206]
[1744876711537,0.1826192,84667.0,84666.0,0.2470006]
[1744876712045,0.1826192,84667.0,84666.0,0.1733206]
[1744876712240,0.1826192,84667.0,84666.0,0.2470006]
[1744876716837,0.1826192,84667.0,84666.0,0.2148006]
[1744876717037,0.1826192,84667.0,84666.0,0.1412006]
[1744876728861,0.1826192,84667.0,84666.0,0.1411206]
[1744876729267,0.1826192,84667.0,84666.0,0.1412006]
[1744876733970,0.1826192,84667.0,84666.0,0.02308]
[1744876734170,0.1826192,84667.0,84666.0,0.1412006]
[1744876739476,0.1826192,84667.0,84666.0,0.1740006]
[1744876741678,0.0645,84667.0,84666.0,0.1740006]
[1744876741875,8e-05,84677.0,84674.0,0.1181094]
[1744876742085,8e-05,84677.0,84674.0,0.1381094]
[1744876742378,0.0331,84677.0,84674.0,0.2022094]
[1744876742770,0.00025711,84675.0,84674.0,0.2022094]
[1744876742968,0.00125711,84675.0,84674.0,0.2022094]
[1744876745075,0.00125711,84675.0,84674.0,0.2052094]
[1744876745877,0.03445711,84675.0,84674.0,0.2052094]
[1744876746683,0.03445711,84675.0,84674.0,0.2072094]
[1744876747474,0.03445711,84675.0,84674.0,0.2082094]
[1744876749275,0.15256511,84675.0,84674.0,0.0901]
[1744876750580,0.03445711,84675.0,84674.0,0.0901]
[1744876751075,0.15256511,84675.0,84674.0,0.0901]
[1744876752788,0.15256511,84675.0,84674.0,0.2082094]
[1744876754287,0.1801969,84683.0,84680.0,0.118101]
[1744876754587,0.0625,84683.0,84682.0,0.1180982]
[1744876754789,0.0625,84683.0,84682.0,0.1380982]
[1744876755088,0.06258,84683.0,84682.0,0.1380982]
[1744876755290,0.06258,84683.0,84682.0,0.2010982]
[1744876755490,0.06258,84683.0,84682.0,0.21357192]
[1744876755992,0.06358,84683.0,84682.0,0.21557192]
[1744876757396,0.06358,84683.0,84682.0,0.21657192]
[1744876757988,0.06258,84683.0,84682.0,0.21757192]
[1744876758189,0.06258,84683.0,84682.0,0.21857192]
[1744876758594,0.03218,84683.0,84682.0,0.22157192]
[1744876763087,0.06548,84683.0,84682.0,0.22157192]
[1744876768102,0.03080801,84689.0,84688.0,0.1180899]
[1744876768392,0.0307,84689.0,84688.0,0.2117299]
[1744876768599,0.1487885,84689.0,84688.0,0.2117299]
[1744876769194,0.1498685,84689.0,84688.0,0.2466299]
[1744876769400,0.1498685,84689.0,84688.0,0.2486299]
[1744876770093,0.1498685,84689.0,84688.0,0.13054]
[1744876771703,0.2130685,84689.0,84688.0,0.13054]
[1744876774399,0.2130685,84689.0,84688.0,0.09964]
[1744876779510,0.09498,84689.0,84688.0,0.2177299]
[1744876779898,0.09498,84689.0,84688.0,0.2494299]
[1744876782611,0.00026573,84707.0,84706.0,0.1180648]
[1744876782830,0.00026573,84707.0,84706.0,0.1916648]
[1744876783029,0.0306,84709.0,84706.0,0.0654]
[1744876783222,8e-05,84707.0,84706.0,0.2770648]
[1744876783526,8e-05,84707.0,84706.0,0.2570648]
[1744876783727,0.00208,84707.0,84706.0,0.2570648]
[1744876784625,0.00408,84707.0,84706.0,0.2570648]
[1744876785126,0.03478,84707.0,84706.0,0.6178648]
[1744876785327,0.03278,84707.0,84706.0,0.6178648]
[1744876785627,0.03378,84707.0,84706.0,0.6178648]
[1744876785822,0.03178,84707.0,84706.0,0.6178648]
[1744876786018,0.03278,84707.0,84706.0,0.6178648]
[1744876786218,0.03178,84707.0,84706.0,0.6178648]
[1744876786424,0.03178,84707.0,84706.0,0.1066]
[1744876786425,0.03278,84707.0,84706.0,0.1066]
[1744876787229,0.03278,84707.0,84706.0,0.2246648]
[1744876789630,0.03278,84707.0,84706.0,0.1066]
[1744876794635,0.0590271,84714.0,84706.0,0.4674]
[1744876794938,0.1180568,84712.0,84708.0,0.1180609]
[1744876795136,0.1180568,84712.0,84709.0,0.0626]
[1744876795436,0.0319,84711.0,84709.0,0.0826]
[1744876795835,0.0319,84711.0,84709.0,0.2006604]
[1744876796836,0.0339,84711.0,84709.0,0.2006604]
[1744876797337,0.0339,84711.0,84710.0,0.1180592]
[1744876797835,0.0339,84711.0,84710.0,0.1809592]
[1744876798037,0.0359,84711.0,84710.0,0.1809592]
[1744876800637,0.004,84711.0,84710.0,0.1809592]
[1744876800836,0.004,84711.0,84710.0,1.6809592]
[1744876801036,0.03141561,84715.0,84712.0,0.1180556]
[1744876801241,0.03141561,84715.0,84713.0,0.2138545]
[1744876801441,0.03141561,84715.0,84713.0,0.2338545]
[1744876801634,0.00011561,84715.0,84714.0,0.1180536]
[1744876801841,0.00011561,84715.0,84714.0,0.1823536]
[1744876802138,0.00011561,84715.0,84714.0,0.4251]
[1744876802444,0.00010801,84719.0,84714.0,0.4251]
[1744876802638,0.00010801,84719.0,84714.0,0.4451]
[1744876803929,0.002,84715.0,84714.0,0.4451]
[1744876804130,0.002,84715.0,84714.0,0.4251]
[1744876804333,0.002,84715.0,84714.0,0.4261]
[1744876804737,0.00410801,84719.0,84714.0,0.4261]
[1744876805039,0.00710801,84719.0,84714.0,0.4461]
[1744876805240,0.01710801,84719.0,84717.0,0.1180487]
[1744876805442,0.01710801,84719.0,84718.0,0.13596]
[1744876805443,0.007,84719.0,84718.0,0.13596]
[1744876805641,0.004,84719.0,84718.0,0.2540081]
[1744876805832,0.01,84720.0,84718.0,0.2540081]
[1744876806031,0.01,84721.0,84718.0,0.2740081]
[1744876806235,8e-05,84719.0,84718.0,0.2740081]
[1744876806431,0.00308,84719.0,84718.0,0.2540081]
[1744876807042,8e-05,84719.0,84718.0,0.2540081]
[1744876807236,0.012,84720.0,84719.0,0.1180467]
[1744876807237,0.002,84720.0,84719.0,0.1180467]
[1744876807437,0.002,84720.0,84719.0,0.1832467]
[1744876807643,0.00208,84720.0,84719.0,0.1832467]
[1744876808034,0.00208,84720.0,84719.0,0.1501467]
[1744876808241,0.00208,84720.0,84719.0,0.2237067]
[1744876808643,8e-05,84720.0,84719.0,0.2237067]
[1744876809145,0.00208,84720.0,84719.0,0.2237067]
[1744876810343,0.00408,84720.0,84719.0,0.2237067]
[1744876811039,0.00408,84720.0,84719.0,0.1501467]
[1744876811234,0.00408,84720.0,84719.0,0.2237067]
[1744876812444,0.118055,84713.0,84703.0,0.0590343]
[1744876812647,0.1180564,84712.0,84711.0,0.02]
[1744876812853,0.3608,84713.0,84710.0,0.02]
[1744876812854,0.3808,84713.0,84710.0,0.02]
[1744876813340,0.1180578,84711.0,84710.0,0.02]
[1744876813540,0.3608,84713.0,84709.0,0.02]
[1744876813735,0.36488,84720.0,84716.0,0.1180502]
[1744876813736,0.36088,84720.0,84716.0,0.1180502]
[1744876814048,0.3608,84720.0,84716.0,0.02]
[1744876814350,0.1180495,84717.0,84716.0,0.02]
[1744876814548,0.1180508,84716.0,84715.0,0.02]
[1744876814742,0.1180564,84712.0,84711.0,0.001]
[1744876815248,0.3680564,84712.0,84711.0,0.001]
[1744876815553,0.1180745,84699.0,84696.0,0.4176]
[1744876815850,0.4788745,84699.0,84698.0,0.07373711]
[1744876816040,0.4788745,84699.0,84698.0,0.00017711]
[1744876816439,0.5117745,84699.0,84698.0,0.00017711]
[1744876817249,0.5447745,84699.0,84698.0,0.00017711]
[1744876817650,0.4267,84699.0,84698.0,0.12225301]
[1744876817853,0.033,84699.0,84698.0,0.15435301]
[1744876818151,0.03308,84699.0,84698.0,0.18585301]
[1744876819549,0.03408,84699.0,84698.0,0.18585301]
[1744876819849,0.03408,84699.0,84698.0,0.18685301]
[1744876820455,0.03408,84699.0,84698.0,0.18585301]
[1744876820750,0.03408,84699.0,84698.0,0.18785301]
[1744876822150,8e-05,84699.0,84698.0,0.18385301]
[1744876822350,8e-05,84699.0,84698.0,0.18685301]
[1744876822656,8e-05,84699.0,84698.0,0.18485301]
[1744876822849,8e-05,84699.0,84698.0,0.18685301]
[1744876826954,0.0301,84708.0,84707.0,0.1180634]
[1744876827150,0.0301,84708.0,84707.0,0.1923034]
[1744876828857,0.0301,84708.0,84707.0,0.1933034]
[1744876829059,0.0301,84708.0,84707.0,0.2257034]
[1744876831764,0.0301,84708.0,84707.0,0.1933034]
[1744876833770,0.0301,84708.0,84707.0,0.1190634]
[1744876833954,0.0301,84708.0,84707.0,0.1933034]
[1744876836059,0.00010801,84711.0,84710.0,0.1180592]
[1744876839060,0.06550801,84711.0,84710.0,0.1180592]
[1744876845663,0.06550801,84711.0,84710.0,0.1496592]
[1744876850475,0.06550801,84711.0,84710.0,0.1826592]
[1744876850674,0.03280801,84711.0,84710.0,0.2132592]
[1744876853467,0.00010801,84711.0,84710.0,0.2132592]
[1744876853670,0.00014581,84718.0,84717.0,0.1180495]
[1744876853872,0.0326,84726.0,84721.0,0.1180439]
[1744876854467,0.0326,84726.0,84721.0,0.1818439]
[1744876855879,0.007,84722.0,84721.0,0.1818439]
[1744876856079,0.01008,84722.0,84721.0,0.1818439]
[1744876856470,0.01008,84722.0,84721.0,0.2555239]
[1744876857378,0.01008,84722.0,84721.0,0.26798741]
[1744876861383,0.01,84722.0,84721.0,0.26798741]
[1744876861571,0.01008,84722.0,84721.0,0.26798741]
[1744876863582,0.01008,84722.0,84721.0,0.69798741]
[1744876872596,0.01008,84722.0,84721.0,1.05878741]
[1744876873003,0.01008,84722.0,84721.0,0.69798741]
[1744876873202,0.01008,84722.0,84721.0,1.05878741]
[1744876873592,0.04288,84722.0,84721.0,1.05878741]
[1744876874103,0.04288,84722.0,84721.0,0.69798741]
[1744876874301,0.04288,84722.0,84721.0,1.05878741]
[1744876874695,0.04288,84722.0,84721.0,0.69798741]
[1744876874902,0.04288,84722.0,84721.0,1.05878741]
[1744876879600,0.04288,84722.0,84721.0,0.71798741]
[1744876879900,0.04288,84722.0,84721.0,1.07878741]
[1744876881602,0.01,84723.0,84721.0,0.96074351]
[1744876881804,0.00026573,84747.0,84724.0,0.0590196]
[1744876881991,0.06496573,84743.0,84742.0,0.1180146]
[1744876882197,0.06496573,84743.0,84742.0,0.1280146]
[1744876882398,0.06496573,84743.0,84742.0,0.2480146]
[1744876882691,0.06478,84743.0,84742.0,0.2794146]
[1744876882993,0.0647,84743.0,84742.0,0.2794146]
[1744876883191,0.06478,84743.0,84742.0,0.2794146]
[1744876883601,0.06478,84743.0,84742.0,0.1594146]
[1744876883998,0.07078,84743.0,84742.0,0.1604146]
[1744876884202,0.07478,84743.0,84742.0,0.1604146]
[1744876886401,0.07478,84743.0,84742.0,0.16935571]
[1744876888404,0.07478,84743.0,84742.0,0.24367571]
[1744876891913,0.07478,84743.0,84742.0,0.16935571]
[1744876892115,0.07478,84743.0,84742.0,0.24367571]
[1744876897722,0.01008,84743.0,84742.0,0.24367571]
[1744876897914,0.0433,84743.0,84742.0,0.24367571]
[1744876898114,0.04338,84743.0,84742.0,0.30467571]
[1744876898718,0.07498,84743.0,84742.0,0.30467571]
[1744876900816,0.04338,84743.0,84742.0,0.24367571]
[1744876901023,0.07648,84743.0,84742.0,0.24367571]
[1744876906216,0.07648,84743.0,84742.0,0.27637571]
[1744876906926,0.04338,84743.0,84742.0,0.30687571]
[1744876907117,0.01008,84743.0,84742.0,0.30687571]
[1744876907318,0.01008,84743.0,84742.0,0.66767571]
[1744876907519,1e-07,84743.0,84742.0,0.66767571]
[1744876907723,0.0301,84755.0,84748.0,0.0590024]
[1744876907920,0.0301,84755.0,84754.0,0.1179979]
[1744876908126,0.03018,84755.0,84754.0,0.2879979]
[1744876908616,0.03018,84755.0,84754.0,0.30027181]
[1744876908816,0.03018,84755.0,84754.0,0.36287181]
[1744876909321,0.04218,84755.0,84754.0,0.36387181]
[1744876910023,0.03718,84755.0,84754.0,0.36387181]
[1744876910228,0.04218,84755.0,84754.0,0.36387181]
[1744876913817,0.01208,84755.0,84754.0,0.36387181]
[1744876914530,0.012,84755.0,84754.0,0.36387181]
[1744876915218,0.01208,84755.0,84754.0,0.36387181]
[1744876915819,0.01208,84755.0,84754.0,0.43815181]
[1744876927934,0.01208,84755.0,84754.0,0.2889979]
[1744876928331,0.01208,84755.0,84754.0,0.1189979]
[1744876928528,0.07328,84755.0,84754.0,0.1189979]
[1744876931132,0.07328,84755.0,84754.0,0.1505979]
[1744876931635,0.43408,84755.0,84754.0,0.1505979]
[1744876932334,0.40308,84755.0,84754.0,0.1605979]
[1744876932534,0.012,84755.0,84754.0,0.1933979]
[1744876932732,0.01208,84755.0,84754.0,0.1933979]
[1744876932938,0.012,84755.0,84754.0,0.1933979]
[1744876933137,0.01208,84755.0,84754.0,0.1933979]
[1744876942237,0.01208,84755.0,84754.0,0.2133979]
[1744876946635,0.00708,84755.0,84754.0,0.2133979]
[1744876946836,0.00208,84755.0,84754.0,0.2123979]
[1744876947940,0.00208,84755.0,84754.0,0.1795979]
[1744876948135,0.06438,84755.0,84754.0,0.1795979]
[1744876949142,0.00208,84755.0,84754.0,0.2104979]
[1744876950446,0.00208,84755.0,84754.0,0.2436979]
[1744876951443,0.002,84755.0,84754.0,0.2436979]
[1744876952337,0.00208,84755.0,84754.0,0.2436979]
[1744876954151,0.00208,84755.0,84754.0,0.3172579]
[1744876957450,0.03278,84755.0,84754.0,0.3172579]
[1744876957948,0.03278,84755.0,84754.0,0.2531579]
[1744876975050,0.39358,84755.0,84754.0,0.2531579]
[1744876978259,0.00208,84755.0,84754.0,0.2855579]
[1744876978655,0.002,84755.0,84754.0,0.2855579]
[1744876978851,0.00208,84755.0,84754.0,0.2855579]
[1744876982770,1e-08,84758.0,84757.0,0.1179937]
[1744876983068,0.0969,84773.0,84763.0,0.1179854]
[1744876983267,0.0969,84773.0,84763.0,0.1379854]
[1744876983767,0.00014581,84767.0,84763.0,0.1379854]
[1744876984169,0.0324,84766.0,84763.0,0.1682854]
[1744876984669,0.0638,84766.0,84763.0,0.1682854]
[1744876985366,0.0324,84766.0,84765.0,0.1179826]
[1744876985568,8e-08,84774.0,84773.0,0.1179715]
[1744876985763,8e-08,84774.0,84773.0,0.5087715]
[1744876985964,8e-08,84774.0,84773.0,0.5187715]
[1744876986161,8.008e-05,84774.0,84773.0,0.5187715]
[1744876986370,8.008e-05,84774.0,84773.0,0.4887715]
[1744876986572,8.008e-05,84774.0,84773.0,0.5498715]
[1744876988068,0.00308008,84774.0,84773.0,0.5498715]
[1744876989168,0.00608008,84774.0,84773.0,0.56161019]
[1744876991773,0.0312,84782.0,84781.0,0.1179603]
[1744876994573,0.0352,84782.0,84781.0,0.1179603]
[1744876995087,0.008,84782.0,84781.0,0.1179603]